[Event "Israel National League 2024"]
[Site "Israel"]
[Date "2024.03.01"]
[Round "9.35"]
[White "Shohat, Yotam"]
[Black "Pasman, Michael"]
[Result "1-0"]
[ECO "B10"]
[WhiteElo "2328"]
[BlackElo "2341"]
[Annotator "TA"]
[PlyCount "87"]
[EventDate "2024.01.07"]
[EventType "team-tourn"]
[EventCountry "ISR"]
[SourceTitle "playchess.com"]
[Source "ChessBase"]
[SourceQuality "1"]
[TimeControl "40/5400+30:1800+30"]

{[%evp 31,87,-21,14,12,11,12,12,-25,36,32,8,11,92,87,81,81,77,74,70,0,50,0,19,0,58,28,53,11,27,0,66,74,361,346,303,148,147,122,145,138,180,180,156,161,237,245,236,236,472,340,29971,29972,12850,1011,29966,29965,29971,29973]} 1. e4 {[%emt 0:00:04]} c6 {[%emt 1:31:00]} 2. c4 {[%emt 0:00:34]} d5 {[%emt 0:00:00]} 3. cxd5 {[%emt 0:00:05]} cxd5 {[%emt 0:00:00]} 4. exd5 {[%emt 0:00:05]} Nf6 {[%emt 0:00:00]} 5. Nc3 {[%emt 0:00:06]} Nxd5 {[%emt 0:00:00]} 6. Nf3 {[%emt 0:00:59]} Nc6 {[%emt 0:00:00]} 7. Bb5 {[%emt 0:01:49]} e6 {[%emt 0:00:00]} 8. O-O {[%emt 0:01:06]} Be7 {[%emt 0:00:00]} 9. d4 {[%emt 0:00:53]} O-O {[%emt 0:00:00]} 10. Re1 {[%emt 0:00:04]} Bd7 {[%emt 0:00:00]} 11. a3 {[%emt 0:08:07] B10: Caro-Kann: 2 d3 and 2 c4.} Rc8 {[%emt 0:00:00]} 12. Bd3 {[%emt 0:01:12]} Bf6 {[%emt 0:00:00]} 13. Bc2 {[%emt 0:07:35]} Nxc3 {[%emt 0:00:00]} 14. bxc3 {[%emt 0:00:02]} Na5 $146 {[%emt 0:00:00]} ({Predecessor:} 14... Ne7 15. Qd3 Ng6 16. Nd2 Bc6 17. Ne4 Bxe4 18. Rxe4 Qd5 19. Rb1 Rfd8 20. Bd2 b6 21. a4 Qc6 22. Rb5 Rd5 {1-0 Kashtanov,R (2345)-Ulyanin,S (2306) Vladimir op-A 2009 (2)}) 15. Qd3 {[%emt 0:05:39]} g6 {[%emt 0:00:00]} 16. Ne5 {[%emt 0:03:41]} Bc6 {[%emt 0:00:00]} 17. c4 {[%emt 0:18:49]} b6 {[%emt 0:00:00]} 18. Bd2 {[%emt 0:08:14]} Qc7 {[%emt 0:00:00]} 19. Bf4 {[%emt 0:12:52]} Qb7 {[%emt 0:00:00]} (19... Bxe5 $11 20. Bxe5 Qd8) 20. Qg3 $14 {[%emt 0:09:41]} Bg7 {[%emt 0:00:00]} 21. Rad1 {[%emt 0:02:26]} Bd5 {[%emt 0:00:00]} (21... Rfd8 $11) 22. cxd5 $16 {[%emt 0:03:03]} Rxc2 {[%emt 0:00:00]} 23. dxe6 {[%emt 0:00:15]} fxe6 {[%emt 0:00:00]} 24. Ng4 {[%emt 0:05:20]} Nc6 {[%emt 0:03:10]} 25. Bd6 {[%emt 0:05:13]} (25. Rxe6 Nxd4 26. Rxd4 Bxd4 $19) ({Better is} 25. Bh6 $14 Rc4 26. Bxg7 (26. Rxe6 Rxd4 27. Rd6 Rxd1+ 28. Rxd1 Nd4 $14) 26... Qxg7 27. Qd6 (27. Rxe6 Nxd4 28. Re4 Rcc8 $16)) 25... Rc8 {[%emt 0:02:24]} (25... Rd8 $11) 26. Qe3 {[%emt 0:03:19]} (26. Rxe6 $2 Nxd4 27. Ree1 Ne2+ 28. Rxe2 Rxe2 $19) 26... Qd7 {[%emt 0:01:12]} 27. Bg3 {[%emt 0:01:37]} (27. Be5 {simplifies} Nxe5 28. dxe5 Qe7 29. h3) 27... Qd5 {[%emt 0:04:03]} (27... Bxd4 $2 28. Rxd4 (28. Qxe6+ Qxe6 29. Rxe6 Kf7 $18) (28. Nf6+ Kf7 $18) 28... Qxd4 29. Qxe6+ Kg7 30. Be5+ $18 (30. Qxc8 Re2 $18) (30. Qxc8 Re2 $18)) (27... Nxd4 $2 28. Ne5 $18) (27... Ne7 $11) 28. h3 {[%emt 0:00:30]} h5 {[%emt 0:01:38]} (28... Nxd4 $2 29. Be5 Bxe5 30. Nxe5 $18) 29. Ne5 {[%emt 0:01:02]} (29. Nh6+ $5 Kh7 30. Nf7 $16) 29... Nxe5 $1 {[%emt 0:00:07]} 30. Bxe5 {[%emt 0:00:25]} Bxe5 {[%emt 0:00:40]} ({Black should try} 30... Rf8 $11) 31. dxe5 $14 {[%emt 0:00:02]} Qc5 $2 {[%emt 0:00:23][%mdl 8192]} (31... Qb7 $16) 32. Qg3 $18 {[%emt 0:00:20]} Kh8 {[%emt 0:01:18]} 33. Rf1 (33. Rd7 $18 Rc1 34. Qxg6 Rxe1+ 35. Kh2 Rh1+ (35... Qxe5+ $2 36. g3 $18) 36. Kxh1 Qc1+ 37. Kh2 Qf4+ 38. Qg3 Qxg3+ 39. Kxg3) 33... Rg8 $16 {[%emt 0:00:19]} 34. Rd7 Rg7 {[%emt 0:01:16]} 35. Rd6 {[%emt 0:01:47]} Rc1 {[%emt 0:00:30] [#]} 36. Rxc1 $1 {[%emt 0:00:21]} (36. Rxe6 $2 {loses.} Rxf1+ 37. Kxf1 Qc1+ (37... Qc4+ $2 38. Kg1 $19) 38. Ke2 Qc4+ 39. Ke1 Qxe6 $19) 36... Qxc1+ {[%emt 0:00:00]} 37. Kh2 {[%emt 0:00:02]} Qc4 {[%emt 0:00:00]} (37... Re7 $142 38. Qxg6 Qf4+ 39. Qg3 Qf5) 38. Qf3 {[%emt 0:01:16]} Kh7 {[%emt 0:01:30]} 39. Qf6 {[%emt 0:00:18]} Qc5 $2 {[%emt 0:00:00]} (39... g5 {might work better.} 40. Rxe6 (40. Qxe6 Qf4+ 41. Kg1 Qc1+ 42. Kh2 Qf4+ 43. Kh1 Qc1+ 44. Kh2 Qf4+ $11) 40... Qf4+ 41. Qxf4 gxf4) 40. Rxe6 $18 {[%emt 0:00:52]} ({And not} 40. Qxe6 Qxf2 41. Qb3 h4 $11) 40... Qxa3 $2 {[%emt 0:00:00]} (40... Qc7 $18 41. g4 Qf7) 41. Re8 {[%emt 0:30:42]} Qb4 {[%emt 0:10:29]} 42. e6 {[%emt 0:00:00]} (42. g4 $142 Qa4 43. Qf8 Qxe8 44. Qxe8) 42... Qd6+ {[%emt 0:00:08]} 43. g3 {[%emt 0:00:00]} a5 {[%emt 0:11:39]} 44. Rd8 {[%emt 0:00:00]} 1-0

[Event "Israel National League 2024"]
[Site "Israel"]
[Date "2024.03.01"]
[Round "9.36"]
[White "Taichman, Ori"]
[Black "Aharonovich, Itamar"]
[Result "1-0"]
[ECO "B20"]
[WhiteElo "2307"]
[BlackElo "2339"]
[Annotator "RC"]
[PlyCount "81"]
[EventDate "2024.01.07"]
[EventType "team-tourn"]
[EventCountry "ISR"]
[SourceTitle "playchess.com"]
[Source "ChessBase"]
[SourceQuality "1"]
[TimeControl "40/5400+30:1800+30"]

1. e4 {[%emt 0:00:03]} c5 {[%emt 0:01:49]} 2. b3 {[%emt 0:01:35]} Nf6 {[%emt 0:01:04]} 3. e5 {[%emt 0:00:07]} Nd5 {[%emt 0:00:34]} 4. Bb2 {[%emt 0:00:27]} g6 {[%emt 0:01:31]} 5. Nc3 {[%emt 0:08:12]} Nxc3 {[%emt 0:06:09]} 6. Bxc3 {[%emt 0:04:45]} Bg7 {[%emt 0:02:14]} 7. Qe2 {[%emt 0:06:09]} O-O {[%emt 0:03:11]} 8. O-O-O {[%emt 0:00:17]} Nc6 {[%emt 0:03:14]} 9. h4 {[%emt 0:05:17]} d5 {[%emt 0:04:33]} 10. exd6 {[%emt 0:00:34]} Qxd6 {[%emt 0:02:39]} 11. h5 {[%emt 0:00:31]} Nd4 {[%emt 0:01:50]} 12. Qe3 {[%emt 0:02:44]} a5 {[%emt 0:10:10]} 13. Re1 {[%emt 0:19:00]} Bf5 {[%emt 0:25:02]} 14. Qxe7 {[%emt 0:13:36]} Qc6 {[%emt 0:11:14]} 15. hxg6 {[%emt 0:02:01]} Bxg6 {[%emt 0:02:02]} 16. Qh4 {[%emt 0:03:48]} a4 {[%emt 0:03:13]} 17. Bd3 {[%emt 0:04:49]} axb3 {[%emt 0:03:09]} 18. Qxh7+ {[%emt 0:00:48]} Bxh7 {[%emt 0:00:04]} 19. Bxh7+ {[%emt 0:00:05]} Kh8 {[%emt 0:00:11]} 20. Be4+ {[%emt 0:00:06]} Qh6 {[%emt 0:01:04]} 21. Rxh6+ {[%emt 0:00:44]} Bxh6 {[%emt 0:00:01]} 22. axb3 {[%emt 0:00:14]} Bg7 {[%emt 0:03:43]} 23. Nf3 {[%emt 0:15:00]} Rfe8 {[%emt 0:00:10]} 24. Bxb7 {[%emt 0:02:39]} Rxe1+ {[%emt 0:02:09]} 25. Nxe1 {[%emt 0:00:02]} Ra7 {[%emt 0:01:55]} 26. Bd5 {[%emt 0:02:32]} Ne2+ {[%emt 0:01:32]} 27. Kb2 {[%emt 0:00:04]} Nxc3 {[%emt 0:00:18]} 28. dxc3 {[%emt 0:00:02]} Kg8 {[%emt 0:01:39]} 29. Nd3 {[%emt 0:00:09]} Rc7 {[%emt 0:00:13]} 30. f4 {[%emt 0:04:28]} Kf8 {[%emt 0:00:57]} 31. g4 {[%emt 0:01:13]} Ke8 {[%emt 0:00:16]} 32. g5 {[%emt 0:00:27]} Ke7 {[%emt 0:04:04]} 33. f5 {[%emt 0:00:18]} Kd6 {[%emt 0:00:18]} 34. Bc4 {[%emt 0:00:39]} f6 {[%emt 0:00:52]} 35. g6 {[%emt 0:00:19]} Bh6 {[%emt 0:00:55]} 36. Bf7 {[%emt 0:00:27]} Ke7 {[%emt 0:02:08]} 37. b4 {[%emt 0:00:15]} Be3 {[%emt 0:01:20]} 38. Kb3 {[%emt 0:00:17]} Rc8 {[%emt 0:00:37]} 39. Be6 {[%emt 0:00:13]} c4+ {[%emt 0:00:17]} 40. Kb2 {[%emt 0:02:24]} cxd3 {[%emt 0:00:38]} 41. cxd3 {[%emt 0:30:03]} 1-0

[Event "Israel National League 2024"]
[Site "Israel"]
[Date "2024.03.08"]
[Round "11.1"]
[White "Greenfeld, Alon"]
[Black "Tzidkiya, Yeshaayahu"]
[Result "1/2-1/2"]
[ECO "E11"]
[WhiteElo "2455"]
[BlackElo "2448"]
[Annotator "RC"]
[PlyCount "61"]
[EventDate "2024.01.07"]
[EventType "team-tourn"]
[EventCountry "ISR"]
[SourceTitle "playchess.com"]
[Source "ChessBase"]
[SourceQuality "1"]
[TimeControl "40/5400+30:1800+30"]

1. d4 {[%emt 0:00:35]} Nf6 {[%emt 0:00:03]} 2. c4 {[%emt 0:00:30]} e6 {[%emt 0:00:26]} 3. Nf3 {[%emt 0:14:12]} Bb4+ {[%emt 0:06:43]} 4. Nbd2 {[%emt 0:01:00]} d5 {[%emt 0:04:39]} 5. Qa4+ {[%emt 0:00:48]} Nc6 {[%emt 0:00:05]} 6. e3 {[%emt 0:00:24]} O-O {[%emt 0:01:05]} 7. Qc2 {[%emt 0:03:47]} Re8 {[%emt 0:06:18]} 8. a3 {[%emt 0:08:49]} Bf8 {[%emt 0:07:18]} 9. b4 {[%emt 0:15:32]} e5 {[%emt 0:05:28]} 10. dxe5 {[%emt 0:00:34]} Nxe5 {[%emt 0:00:11]} 11. Bb2 {[%emt 0:00:22]} Nxf3+ {[%emt 0:06:19]} 12. Nxf3 {[%emt 0:00:18]} c5 {[%emt 0:03:15]} 13. bxc5 {[%emt 0:07:46]} Bxc5 {[%emt 0:02:05]} 14. Be2 {[%emt 0:00:57]} Ne4 {[%emt 0:03:14]} 15. O-O {[%emt 0:01:08]} Bf5 {[%emt 0:01:09]} 16. Qb3 {[%emt 0:10:32]} dxc4 {[%emt 0:03:59]} 17. Bxc4 {[%emt 0:01:11]} Be6 {[%emt 0:01:45]} 18. Rac1 {[%emt 0:04:44]} Qb6 {[%emt 0:06:47]} 19. Qxb6 {[%emt 0:00:59]} axb6 {[%emt 0:00:21]} 20. Bxe6 {[%emt 0:01:32]} Rxe6 {[%emt 0:02:29]} 21. Rfd1 {[%emt 0:00:34]} Rd6 {[%emt 0:04:20]} 22. Nd4 {[%emt 0:01:34]} f6 {[%emt 0:03:31]} 23. Kf1 {[%emt 0:01:58]} Kf7 {[%emt 0:02:34]} 24. Ke2 {[%emt 0:02:32]} Ra6 {[%emt 0:08:05]} 25. f3 {[%emt 0:09:14]} Ng5 {[%emt 0:00:04]} 26. Nb5 {[%emt 0:00:55]} Rxd1 {[%emt 0:07:09]} 27. Rxd1 {[%emt 0:00:07]} Ke7 {[%emt 0:00:10]} 28. Nc7 {[%emt 0:00:58]} Ra5 {[%emt 0:00:14]} 29. Nd5+ {[%emt 0:00:30]} Kf7 {[%emt 0:00:49]} 30. Nb4 {[%emt 0:02:56]} Ke6 {[%emt 0:02:09]} 31. Rd3 {[%emt 0:04:12]} 1/2-1/2

[Event "Israel National League 2024"]
[Site "Israel"]
[Date "2024.03.08"]
[Round "11.2"]
[White "Aizenberg, Benny"]
[Black "Dvoirys, Semen I."]
[Result "1/2-1/2"]
[ECO "B81"]
[WhiteElo "2396"]
[BlackElo "2466"]
[Annotator "TA"]
[PlyCount "58"]
[EventDate "2024.01.07"]
[EventType "team-tourn"]
[EventCountry "ISR"]
[SourceTitle "playchess.com"]
[Source "ChessBase"]
[SourceQuality "1"]
[TimeControl "40/5400+30:1800+30"]

{[%evp 12,58,25,14,38,22,27,0,0,0,0,0,0,0,-10,-12,0,0,0,0,-8,-26,0,-72,-70,-78,-65,-70,-52,-70,-65,-73,-77,-89,-81,-72,-20,-14,0,0,0,-17,0,-32,0,-25,0,0,0]} 1. e4 {[%emt 0:00:17]} c5 {[%emt 0:00:09]} 2. Nf3 {[%emt 0:00:06][%cal Bg1f3,Bf3d4,Bd4e2,Be2c3][%mdl 32]} d6 {[%emt 0:00:17][%cal Bd7d6,Bd6d5,Bd5e4,Be4e3,Be3f2][%mdl 32]} 3. d4 {[%emt 0:00:04]} cxd4 {[%emt 0:00:03]} 4. Nxd4 {[%emt 0:00:04]} Nf6 {[%emt 0:00:06]} 5. Nc3 {[%emt 0:00:04]} a6 {[%emt 0:00:04]} 6. h3 {[%emt 0:00:04]} e6 {[%emt 0:01:10]} 7. g4 {[%emt 0:00:03]} d5 {[%emt 0:00:51]} 8. Nde2 {[%emt 0:00:23]} Bc5 {[%emt 0:03:08]} 9. Bg2 {[%emt 0:05:57][%cal Re4d5]} Qb6 {[%emt 0:02:09]} 10. O-O {[%emt 0:04:05]} Nxe4 {[%emt 0:00:16]} 11. Nxe4 {[%emt 0:09:26]} dxe4 {[%emt 0:00:07]} 12. Nc3 {[%emt 0:02:27]} e3 {[%emt 0:01:49][%cal Re3f2]} 13. Na4 {[%emt 0:04:32]} exf2+ {[%emt 0:00:27]} 14. Kh1 {[%emt 0:00:02]} Qc7 {[%emt 0:02:01]} 15. Nxc5 {[%emt 0:00:47]} Qxc5 {[%emt 0:00:08]} 16. Bf4 {[%emt 0:00:07]} (16. Qf3 {simplifies} O-O 17. Qxf2 Qxf2 18. Rxf2 Nc6 19. b3) 16... e5 {[%emt 0:00:57]} 17. b4 {[%emt 0:02:54]} Qc7 $17 {[%emt 0:05:15]} 18. Qe2 {[%emt 0:00:16]} Nc6 {[%emt 0:00:12]} (18... f6 {simplifies} 19. Rxf2 Be6 20. Be3 O-O) 19. Be3 {[%emt 0:02:57]} O-O {[%emt 0:01:01]} ({Reject} 19... Nxb4 20. Rab1 Qxc2 21. Bd2 $11) 20. Qxf2 {[%emt 0:00:07]} Be6 {[%emt 0:00:40]} (20... Nxb4 21. Bc5 Nc6 22. Bxf8 Kxf8 23. Be4 $11) (20... Nd4 $5 21. Bxd4 exd4 22. Qxd4 Be6 $17 (22... Qxc2 23. Rac1 $17)) 21. Bc5 {[%emt 0:04:26]} Rfe8 {[%emt 0:03:33]} 22. Rad1 {[%emt 0:03:34]} Bxa2 {[%emt 0:30:54]} 23. Be4 {[%emt 0:00:48]} Ne7 {[%emt 0:00:21]} ({Black should try} 23... a5 $17 24. Bb6 Qe7 25. bxa5 Nxa5) 24. Bd6 $11 {[%emt 0:02:46]} Qd7 {[%emt 0:03:17]} 25. Bc5 {[%emt 0:08:40] This pair of bishops is nice.} Qc7 {[%emt 0:10:48]} 26. Bd6 $1 {[%emt 0:02:25]} Qd7 {[%emt 0:04:52]} 27. Bc5 $1 {[%emt 0:05:44]} Qc7 {[%emt 0:11:36]} 28. Bd6 $1 {[%emt 0:00:27]} Qd7 {[%emt 0:00:15]} 29. Bc5 $1 {[%emt 0:05:24]} Qc7 {[%emt 0:18:34] Weighted Error Value: White=0.08 (flawless) /Black=0.12 (very precise) .  Mistake:       	White=1     	Black=1      Inaccurate:     	White=1     	Black=1      OK:         	White=9     	Black=7      Best:        	White=2     	Black=1      Strong:       	White=4     	---} 1/2-1/2

[Event "Israel National League 2024"]
[Site "Israel"]
[Date "2024.03.08"]
[Round "11.6"]
[White "Solomon, Asif"]
[Black "Taichman, Ori"]
[Result "0-1"]
[ECO "E71"]
[WhiteElo "2242"]
[BlackElo "2307"]
[Annotator "TA"]
[PlyCount "80"]
[EventDate "2024.01.07"]
[EventType "team-tourn"]
[EventCountry "ISR"]
[SourceTitle "playchess.com"]
[Source "ChessBase"]
[SourceQuality "1"]
[TimeControl "40/5400+30:1800+30"]

{[%evp 13,80,26,37,41,29,35,35,33,34,21,70,45,131,105,108,132,116,113,119,104,189,186,215,181,224,183,176,195,195,141,121,20,37,38,26,31,54,20,36,20,17,0,-13,-239,-235,-789,-772,-767,-791,-796,-780,-6111,-752,-1831,-1819,-1690,-1009,-1647,-1580,-29978,-29978,-29994,-908,-29995,-29996,-29996,-29997,-29997,128]} 1. d4 {[%emt 0:00:05]} Nf6 {[%emt 0:00:02]} 2. c4 {[%emt 0:00:22]} g6 {[%emt 0:00:05]} 3. Nc3 {[%emt 0:00:03]} Bg7 {[%emt 0:00:05]} 4. e4 {[%emt 0:00:05]} d6 {[%emt 0:00:04]} 5. h3 {[%emt 0:00:24]} O-O {[%emt 0:00:04]} 6. Be3 {[%emt 0:00:02]} e5 {[%emt 0:00:09]} 7. d5 {[%emt 0:00:04]} Na6 {[%emt 0:00:02][%cal Bb8a6,Ba6c5,Bc5e6][%mdl 32]} 8. g4 {[%emt 0:00:44][%cal Bg2g4,Bg4g5][%mdl 32]} Nc5 {[%emt 0:00:12]} 9. f3 {[%emt 0:00:41]} a5 {[%emt 0:00:31]} 10. Qd2 {[%emt 0:01:34] Weiß steht etwas besser.} c6 {[%emt 0:00:23]} 11. h4 {[%emt 0:07:28]} h5 {[%emt 0:08:43]} (11... cxd5 $11 12. cxd5 h5) 12. g5 {[%emt 0:00:39]} Ne8 {[%emt 0:01:32]} (12... Nfd7 $14) 13. dxc6 $16 {[%emt 0:04:28]} Ne6 {[%emt 0:00:02]} 14. cxb7 {[%emt 0:01:41]} Bxb7 {[%emt 0:01:30]} 15. Nge2 {[%emt 0:04:38]} a4 {[%emt 0:08:03]} 16. Rd1 {[%emt 0:07:10]} a3 {[%emt 0:03:45]} (16... Ba6 $16) 17. b4 {[%emt 0:06:52]} f6 {[%emt 0:02:19]} 18. Bh3 {[%emt 0:03:31]} Nd4 {[%emt 0:06:35]} 19. Nxd4 {[%emt 0:12:26]} exd4 {[%emt 0:00:06]} 20. Bxd4 {[%emt 0:00:12] gxf6 ist eine echte Drohung.} fxg5 {[%emt 0:00:12]} 21. Be6+ {[%emt 0:05:31]} (21. hxg5 Bxd4 22. Qxd4 Qxg5) (21. Qxg5 $18 Qxg5 22. Be6+ (22. hxg5 Rxf3 23. Be6+ Kh7 $18) 22... Kh7 23. hxg5) 21... Kh7 {[%emt 0:00:11]} 22. Bxg7 {[%emt 0:04:53]} (22. hxg5 $16 {Qe3 wäre nun fies.} Bxd4 23. Qxd4 Qxg5 24. Ke2) 22... Nxg7 $11 {[%emt 0:02:20]} 23. Bd5 {[%emt 0:01:17]} (23. Qxd6 $2 Qf6 $19 (23... gxh4 $2 24. Qxd8 Raxd8 25. Rxd8 $18) (23... gxh4 $2 24. Qxd8 Raxd8 25. Rxd8 $18)) 23... Bxd5 {[%emt 0:00:21]} 24. Nxd5 {[%emt 0:00:34]} Ne6 {[%emt 0:02:36]} 25. Qe3 {[%emt 0:07:35] Und jetzt 0-0 wäre schön.} gxh4 {[%emt 0:08:15]} 26. f4 {[%emt 0:00:37] Pariert Qg5. Droht stark 0-0.} Rc8 {[%emt 0:00:49]} 27. Rg1 {[%emt 0:05:10][%cal Og1g6] Und Rxg6! würde nun gewinnen.} (27. Qxa3 Nxf4 28. Qa7+ Kh8 (28... Kh6 29. Qe3 $15) 29. Qd4+ Kh7 30. Qa7+ Kh6 $17) 27... h3 {[%emt 0:27:44]} (27... Rxc4 28. f5 gxf5 29. exf5) 28. Qg3 $2 {[%emt 0:04:42]} (28. Qxh3 $11 {und Weiss steht sicher.} Nxf4 29. Qg3) 28... Qe8 $19 {[%emt 0:00:34]} 29. c5 $2 {[%emt 0:09:28] [#]} (29. f5 Rxc4 30. Qd3) 29... Nxf4 $1 {[%emt 0:03:07][%mdl 512]} 30. Nxf4 {[%emt 0:01:02]} Qxe4+ {[%emt 0:00:16]} 31. Ne2 {[%emt 0:00:16]} Rce8 {[%emt 0:00:22]} (31... dxc5 32. Rd7+ (32. Qxa3 $2 h2 $19) 32... Kg8 33. Qxg6+ (33. Qxh3 cxb4 34. Qb3+ Kh8 $15) 33... Qxg6 34. Rxg6+ Kh8 35. Rd5 $18 (35. Rh6+ Kg8 $18)) (31... Qxb4+ 32. Rd2 Rf6 (32... Rxc5 33. Qxg6+ Kh8 34. Qh6#) 33. Qxh3 $11) 32. Rd2 {[%emt 0:02:08]} Qb1+ {[%emt 0:00:12]} (32... Qxb4 33. Qxg6+ Kh8 34. Qxh5#) (32... Rf3 $142 33. Qxf3 Qxf3) 33. Rd1 {[%emt 0:00:04]} Qxb4+ {[%emt 0:00:07]} (33... Qxa2 34. Qxg6+ Kh8 35. Qxh5#) 34. Rd2 {[%emt 0:00:04]} Qb1+ {[%emt 0:04:35]} ({Schlechter ist} 34... Qxc5 35. Qxg6+ Kh8 36. Qh6#) 35. Rd1 {[%emt 0:00:01]} Qe4 {[%emt 0:00:09]} ({Nicht} 35... Qxa2 36. Qxg6+ Kh8 37. Qxh5#) 36. Rd2 {[%emt 0:00:40]} Rf3 {[%emt 0:00:31]} 37. Qxd6 {[%emt 0:01:45]} Qb1+ {[%emt 0:00:09]} 38. Rd1 {[%emt 0:00:08] [#]} Rxe2+ $1 {[%emt 0:00:05][%mdl 512] Schwarz setzt Matt.} 39. Kxe2 {[%emt 0:00:15]} Qe4+ {[%emt 0:00:03]} 40. Kd2 {[%emt 0:00:17]} Qe3+ {[%emt 0:00:06][%mdl 32768] Nie zu früh aufgeben!   Gewichteter Fehlerwert: Weiß=0.74/Schwarz=0.20 (präzise) .  Verlustzug:     	Weiß=1     	---        Fehler:       	Weiß=3     	Schwarz=3     Ungenau:       	Weiß=1     	---        OK:         	Weiß=9     	Schwarz=6     Bester:       	Weiß=1     	Schwarz=4     Brilliant:      	---       	Schwarz=1    . Zeitüberschreitung!?} 0-1

[Event "Israel National League 2024"]
[Site "Israel"]
[Date "2024.03.08"]
[Round "11.7"]
[White "Levin, Guy"]
[Black "Nabaty, Tamir"]
[Result "0-1"]
[ECO "A13"]
[WhiteElo "2435"]
[BlackElo "2646"]
[Annotator "TA"]
[PlyCount "104"]
[EventDate "2024.01.07"]
[EventType "team-tourn"]
[EventCountry "ISR"]
[SourceTitle "playchess.com"]
[Source "ChessBase"]
[SourceQuality "1"]
[TimeControl "40/5400+30:1800+30"]

{[%evp 24,104,-9,-25,-22,-16,-15,-21,0,0,0,0,0,-12,0,-8,-12,-43,-60,-120,-123,-130,-107,-108,-25,-87,-94,-87,-101,-90,-95,-117,-106,-133,-100,-117,-27,-27,-29,-68,-41,-46,-45,-33,-37,-94,-64,-87,-80,-105,-105,-96,-87,-109,-107,-126,-85,-118,-106,-110,-106,-124,-90,-160,-99,-127,-124,-204,-191,-247,-247,-285,-277,-29973,-29974,-29973,-29975,-29975,-29976,-29976,-29977,-29975,-12049]} 1. Nf3 {[%emt 0:00:19]} d5 {[%emt 0:00:42]} 2. e3 {[%emt 0:00:03]} Nf6 {[%emt 0:00:24]} 3. c4 {[%emt 0:00:08]} e6 {[%emt 0:00:32]} 4. b3 {[%emt 0:00:09]} Bd6 {[%emt 0:00:33]} 5. Bb2 {[%emt 0:00:13]} O-O {[%emt 0:01:57]} 6. Nc3 {[%emt 0:00:27] A13: Reti-Eröffnung.} Re8 {[%emt 0:06:33]} 7. d4 {[%emt 0:00:14]} b6 {[%emt 0:00:16]} 8. Qc2 {[%emt 0:07:15]} Bb7 {[%emt 0:00:39]} 9. cxd5 $146 {[%emt 0:00:15]} ({Predecessor:} 9. Bd3 Nbd7 10. cxd5 exd5 11. Nb5 Bb4+ 12. Bc3 Bf8 13. Bb2 Bb4+ 14. Nc3 Bd6 15. O-O {1-0 Cordova,E (2568)-Lin,A (2314) US Masters op 2023 (4)}) 9... exd5 {[%emt 0:00:40]} 10. g3 {[%emt 0:01:45]} c5 {[%emt 0:02:34]} 11. Bg2 {[%emt 0:07:14]} Nc6 {[%emt 0:10:24]} 12. O-O {[%emt 0:06:46]} cxd4 {[%emt 0:03:14]} 13. Nxd4 {[%emt 0:01:12]} Nxd4 {[%emt 0:00:10]} 14. exd4 {[%emt 0:00:05]} Qd7 {[%emt 0:00:40]} 15. Rfe1 {[%emt 0:05:16]} Re6 {[%emt 0:10:36]} 16. Rxe6 {[%emt 0:12:58]} Qxe6 {[%emt 0:00:14]} 17. Nb5 {[%emt 0:01:01]} Bf8 {[%emt 0:11:40]} 18. Qd2 {[%emt 0:10:00]} Re8 {[%emt 0:12:00]} 19. a4 {[%emt 0:11:47]} a6 {[%emt 0:06:37]} 20. Nc7 {[%emt 0:07:47]} Qe2 {[%emt 0:00:08]} 21. Bc3 {[%emt 0:00:45]} (21. Bc1 $1 $15 Qxd2 (21... Qe1+ 22. Bf1 $17) 22. Bxd2) 21... Re7 $17 {[%emt 0:00:33]} 22. Rc1 {[%emt 0:03:33]} Qh5 {[%emt 0:13:05]} 23. Ba1 {[%emt 0:12:21]} Qf5 {[%emt 0:08:56]} (23... g6 $17 24. Qc3 Qf5) 24. b4 {[%emt 0:04:09]} (24. Bb2 $11 {bleibt in der Remisbreite.}) 24... Ne4 $17 {[%emt 0:00:43]} 25. Qf4 {[%emt 0:01:42]} Qxf4 {[%emt 0:01:45]} 26. gxf4 {[%emt 0:00:02]} g6 {[%emt 0:00:01]} 27. Bf1 {[%emt 0:01:36]} Nd2 {[%emt 0:01:48]} 28. b5 {[%emt 0:01:31]} (28. Bxa6 $2 Nb3 29. Rc3 Bxa6 (29... Nxa1 30. Bxb7 Re1+ 31. Kg2 $16) (29... Nxd4 30. Kf1 $11) 30. Nxa6 Nxa1 $19) 28... a5 {[%emt 0:00:53]} 29. Bb2 {[%emt 0:02:01]} Nxf1 {[%emt 0:04:40]} (29... h5 $17 30. h3 Nb3) 30. Kxf1 $11 {[%emt 0:00:29]} Re4 {[%emt 0:00:44]} 31. Na8 {[%emt 0:01:48]} Bxa8 {[%emt 0:00:45]} 32. Rc8 {[%emt 0:00:02]} Kg7 {[%emt 0:00:46]} 33. Rxa8 {[%emt 0:00:03]} Bb4 {[%emt 0:00:06]} 34. Kg2 {[%emt 0:01:15]} (34. Rc8 $15) 34... Rxf4 {[%emt 0:01:23]} 35. Bc1 {[%emt 0:01:00]} Re4 $1 {[%emt 0:00:39]} (35... Rxd4 $2 36. Bb2 Bc5 37. Rd8 $18 (37. Bxd4+ Bxd4 38. Rd8 Be5 $18)) 36. Rc8 {[%emt 0:00:41]} Be7 {[%emt 0:00:37]} (36... Rxd4 $2 37. Bb2 $18) 37. Rc6 {[%emt 0:00:35]} Re6 {[%emt 0:00:13]} (37... Rxd4 $2 38. Bb2 (38. Rxb6 $2 Rg4+ 39. Kf3 Rxa4 $19) 38... Bf6 39. Rxb6 (39. Rxf6 Rg4+ 40. Kf1 Kf8 $18) 39... Rxa4 (39... Rf4 $2 40. Rxf6 Rg4+ 41. Kf1 $18) 40. Bxf6+ Kh6 41. Ra6 $18) 38. Bf4 {[%emt 0:00:04]} Bf6 $1 {[%emt 0:00:08]} 39. Be3 {[%emt 0:00:50]} g5 {[%emt 0:00:53]} 40. Kf3 {[%emt 0:00:35]} Kg6 {[%emt 0:00:15]} 41. Rc7 {[%emt 0:02:52]} Be7 {[%emt 0:02:27]} 42. Rd7 {[%emt 0:02:25]} Bd6 {[%emt 0:00:46]} 43. h3 {[%emt 0:01:56]} (43. Rb7 $142 Bb4 (43... Bxh2 44. Kg2 $15) 44. h4) 43... h5 {[%emt 0:06:04]} ({Besser ist} 43... f5 $1 {Und jetzt ...f4 wäre schön.} 44. Bc1 h6) 44. Bc1 {[%emt 0:09:39] [#]} f6 $1 {[%emt 0:02:34]} 45. Rd8 {[%emt 0:08:01]} (45. Rb7 $17 {ist eine bessere Verteidigung.} Bb4 46. Rb8) 45... Kf5 $19 {[%emt 0:01:37]} 46. Rh8 {[%emt 0:02:08]} (46. Kg2 $142) 46... Re1 $19 {[%emt 0:07:12]} 47. Be3 {[%emt 0:01:40]} Rh1 {[%emt 0:09:48]} 48. Rxh5 $2 {[%emt 0:03:22] [#]} (48. Rd8 $19 Ke6 (48... Rxh3+ 49. Kg2 $11) 49. Kg2 Rh2+ 50. Kg1 Rxh3 51. Rc8) 48... Rxh3+ $1 {[%emt 0:00:33]} 49. Rxh3 {[%emt 0:00:02]} g4+ {[%emt 0:00:07]} 50. Kg2 {[%emt 0:00:06]} gxh3+ {[%emt 0:00:02]} 51. Kxh3 {[%emt 0:00:08]} Bf4 {[%emt 0:00:50]} 52. Kg2 {[%emt 0:00:27]} Ke4 {[%emt 0:00:33]} 0-1